fUST/lending_fUST_20250926
["ID","MTS","AMOUNT","RATE_DAILY","PERIOD"]
[387761179,1758838252162,-160.0,0.00020627,3]
[387761180,1758838252171,-28567.35474008,0.00020627,3]
[387761181,1758838252180,-151.0,0.00020627,2]
[387761182,1758838252190,-151.0,0.00020627,2]
[387761183,1758838252199,-151.0,0.00020627,2]
[387761184,1758838252209,-151.0,0.00020627,2]
[387761185,1758838252218,-151.0,0.00020627,2]
[387761186,1758838252227,-198.697423,0.00020627,2]
[387761187,1758838252237,-281.739921,0.00020627,2]
[387761188,1758838252246,-153.356465,0.00020627,2]
[387761189,1758838252255,-281.739921,0.00020627,2]
[387761190,1758838252265,-281.739921,0.00020627,2]
[387761191,1758838252274,-151.0,0.00020627,2]
[387761192,1758838252283,-281.73992641,0.00020627,2]
[387761193,1758838252293,-247.867734,0.00020627,2]
[387761194,1758838252302,-151.0,0.00020627,2]
[387761195,1758838252311,-151.0,0.00020627,2]
[387761196,1758838252320,-151.0,0.00020627,2]
[387761197,1758838252329,-151.0,0.00020627,2]
[387761198,1758838252338,-151.0,0.00020627,2]
[387761199,1758838252347,-228.440396,0.00020627,2]
[387761200,1758838252357,-155.803789,0.00020633,2]
[387761201,1758838252366,-150.0,0.00020633,2]
[387761202,1758838252375,-150.238,0.00020633,2]
[387761203,1758838252385,-4586.0,0.00020637,2]
[387761204,1758838252394,-160.0,0.00020646,2]
[387761205,1758838252404,-150.184,0.0002066,2]
[387761206,1758838252414,-150.0,0.0002066,2]
[387761207,1758838252428,-150.604,0.0002066,2]
[387761208,1758838252438,-150.256,0.0002066,2]
[387761209,1758838252448,-981.87,0.0002066,2]
[387761210,1758838252458,-635.0,0.0002066,2]
[387761211,1758838252468,-2160.0,0.0002066,2]
[387761212,1758838252477,-151.0,0.000207,4]
[387761213,1758838252487,-151.0,0.000207,4]
[387761214,1758838252497,-480.0,0.00020703,2]
[387761215,1758838252507,-518.13,0.00020703,2]
[387761216,1758838252516,-995.98,0.00020703,2]
[387761217,1758838252526,-2557.87,0.00020703,2]
[387761218,1758838252536,-3805.61,0.00020703,2]
[387761219,1758838252545,-480.0,0.00020703,2]
[387761220,1758838252555,-819.71,0.00020703,2]
[387761221,1758838252564,-480.0,0.00020704,2]
[387761222,1758838252574,-480.0,0.00020704,2]
[387761223,1758838252589,-480.0,0.00020704,2]
[387761224,1758838252600,-480.0,0.00020704,2]
[387761225,1758838252614,-480.0,0.00020704,2]
[387761226,1758838252625,-344.26961478,0.00020704,2]
[387761227,1758838252635,-480.0,0.00020704,2]
[387761228,1758838252644,-480.0,0.00020704,2]
[387761229,1758838252655,-480.0,0.00020704,2]
[387761230,1758838252665,-480.0,0.00020704,2]
[387761231,1758838252675,-537.83,0.00020704,2]
[387761232,1758838252684,-480.0,0.00020704,2]
[387761233,1758838252694,-1097.49,0.00020704,2]
[387761234,1758838252703,-574.87,0.00020704,2]
[387761235,1758838252713,-480.0,0.00020704,2]
[387761236,1758838252722,-480.0,0.00020704,2]
[387761237,1758838252733,-480.0,0.00020704,2]
[387761238,1758838252743,-480.0,0.00020704,2]
[387761239,1758838252753,-746.0,0.00020704,2]
[387761240,1758838252762,-1188.66,0.00020704,2]
[387761241,1758838252772,-480.0,0.00020704,2]
[387761242,1758838252781,-480.0,0.00020704,2]
[387761243,1758838252790,-1267.22,0.00020704,2]
[387761244,1758838252799,-631.04,0.00020704,2]
[387761245,1758838252809,-480.0,0.00020704,2]
[387761246,1758838252818,-521.69,0.00020704,2]
[387761247,1758838252828,-841.54,0.00020704,2]
[387761248,1758838252838,-2281.18,0.00020704,2]
[387761249,1758838252901,-480.0,0.00020704,2]
[387761250,1758838252912,-480.0,0.00020704,2]
[387761251,1758838252921,-480.0,0.00020704,2]
[387761252,1758838252930,-1278.54,0.00020704,2]
[387761253,1758838252940,-660.24,0.00020704,2]
[387761254,1758838252950,-566.86,0.00020704,2]
[387761255,1758838252959,-482.45,0.00020704,2]
[387761256,1758838252969,-1124.2,0.00020704,2]
[387761257,1758838252978,-811.64,0.00020704,2]
[387761258,1758838252988,-1879.63,0.00020704,2]
[387761259,1758838252998,-480.0,0.00020704,2]
[387761260,1758838253007,-480.0,0.00020704,2]
[387761261,1758838253017,-480.0,0.00020704,2]
[387761262,1758838253026,-480.0,0.00020704,2]
[387761263,1758838253036,-480.0,0.00020704,2]
[387761264,1758838253046,-1002.7,0.00020705,2]
[387761265,1758838253055,-480.0,0.00020711,2]
[387761266,1758838253064,-3674.97,0.00020711,2]
[387761267,1758838253074,-722.93,0.00020711,2]
[387761268,1758838253083,-1532.43,0.00020711,2]
[387761269,1758838253093,-480.0,0.00020712,2]
[387761270,1758838253104,-912.02,0.00020712,2]
[387761271,1758838253113,-840.21,0.00020712,2]
[387761272,1758838253123,-1277.34,0.00020713,2]
[387761273,1758838253132,-480.0,0.00020713,2]
[387761274,1758838253142,-480.0,0.00020713,2]
[387761275,1758838253151,-1000.0,0.00020721,2]
[387761276,1758838253160,-168.0,0.00020755,2]
[387761277,1758838253170,-151.0,0.000208,3]
[387761278,1758838253180,-151.0,0.000208,4]
[387761279,1758838253189,-196.0,0.0002081,2]
[387761280,1758838253199,-500.0,0.00020828,2]
[387761281,1758838253208,-151.0,0.00020828,2]
[387761282,1758838253218,-177.03570753,0.00020878,2]
[387761283,1758838253228,-569.49839756,0.00020882,2]
[387761284,1758838253237,-252.56921982,0.000209,2]
[387761285,1758838253247,-2949.90918836,0.00020972,2]
[387761286,1758838253257,-480.0,0.00020977,2]
[387761287,1758838253266,-518.13,0.00020977,2]
[387761288,1758838253276,-995.98,0.00020977,2]
[387761289,1758838253286,-2557.87,0.00020977,2]
[387761290,1758838253295,-3805.61,0.00020977,2]
[387761291,1758838253305,-480.0,0.00020977,2]
[387761292,1758838253315,-819.71,0.00020977,2]
[387761293,1758838253324,-480.0,0.00020978,2]
[387761294,1758838253334,-480.0,0.00020978,2]
[387761295,1758838253344,-480.0,0.00020978,2]
[387761296,1758838253354,-480.0,0.00020978,2]
[387761297,1758838253363,-480.0,0.00020978,2]
[387761298,1758838253373,-480.0,0.00020978,2]
[387761299,1758838253382,-480.0,0.00020978,2]
[387761300,1758838253392,-480.0,0.00020978,2]
[387761301,1758838253401,-537.83,0.00020978,2]
[387761302,1758838253411,-480.0,0.00020978,2]
[387761303,1758838253420,-1097.49,0.00020978,2]
[387761304,1758838253430,-574.87,0.00020978,2]
[387761305,1758838253439,-480.0,0.00020978,2]
[387761306,1758838253449,-480.0,0.00020978,2]
[387761307,1758838253458,-480.0,0.00020978,2]
[387761308,1758838253468,-480.0,0.00020978,2]
[387761309,1758838253478,-746.0,0.00020978,2]
[387761310,1758838253487,-1188.66,0.00020978,2]
[387761311,1758838253496,-480.0,0.00020978,2]
[387761312,1758838253506,-480.0,0.00020978,2]
[387761313,1758838253515,-1267.22,0.00020978,2]
[387761314,1758838253525,-631.04,0.00020978,2]
[387761315,1758838253535,-480.0,0.00020978,2]
[387761316,1758838253544,-521.69,0.00020978,2]
[387761317,1758838253554,-841.54,0.00020978,2]
[387761318,1758838253563,-2281.18,0.00020978,2]
[387761319,1758838253573,-480.0,0.00020978,2]
[387761320,1758838253585,-480.0,0.00020978,2]
[387761321,1758838253595,-480.0,0.00020978,2]
[387761322,1758838253606,-1278.54,0.00020978,2]
[387761323,1758838253616,-660.24,0.00020978,2]
[387761324,1758838253626,-566.86,0.00020978,2]
[387761325,1758838253636,-482.45,0.00020978,2]
[387761326,1758838253646,-811.64,0.00020978,2]
[387761327,1758838253656,-1124.2,0.00020978,2]
[387761328,1758838253666,-1879.63,0.00020978,2]
[387761329,1758838253676,-480.0,0.00020978,2]
[387761330,1758838253685,-480.0,0.00020978,2]
[387761331,1758838253695,-480.0,0.00020978,2]
[387761332,1758838253705,-480.0,0.00020978,2]
[387761333,1758838253714,-480.0,0.00020978,2]
[387761334,1758838253724,-1002.7,0.00020979,2]
[387761335,1758838253733,-480.0,0.00020985,2]
[387761336,1758838253743,-151.0,0.00020985,2]
[387761337,1758838253752,-151.0,0.00020985,2]
[387761338,1758838253762,-3674.97,0.00020985,2]
[387761339,1758838253771,-722.93,0.00020985,2]
[387761340,1758838253781,-1532.43,0.00020985,2]
[387761341,1758838253790,-162.086011,0.00020986,2]
[387761343,1758838253799,-480.0,0.00020986,2]
[387761345,1758838253809,-912.02,0.00020986,2]
[387761347,1758838253819,-840.21,0.00020986,2]
[387761349,1758838253828,-1277.34,0.00020987,2]
[387761358,1758838253902,-151.0,0.00020987,2]
[387761360,1758838253911,-480.0,0.00020987,2]
[387761361,1758838253921,-480.0,0.00020987,2]
[387761363,1758838253930,-10000.0,0.00021,5]
[387761365,1758838253939,-272.99875633,0.00021,2]
[387761367,1758838253949,-168.63354543,0.00021025,2]
[387761369,1758838253958,-420.0,0.00021064,2]
[387761371,1758838253968,-1077.13362676,0.00021068,2]
[387761374,1758838253977,-500.0,0.00021068,2]
[387761376,1758838253987,-1500.0,0.00021068,2]
[387761378,1758838253996,-1008.58252175,0.00021068,2]
[387761380,1758838254005,-1500.0,0.00021068,2]
[387761381,1758838254015,-1500.0,0.00021068,2]
[387761384,1758838254024,-500.0,0.00021102,2]
[387761386,1758838254034,-492.0,0.00021166,2]
[387761388,1758838254043,-260.0,0.00021194,2]
[387761390,1758838254053,-233.35234026,0.00021251,2]
[387761392,1758838254063,-518.13,0.00021251,2]
[387761394,1758838254072,-995.98,0.00021251,2]
[387761396,1758838254081,-2557.87,0.00021251,2]
[387761398,1758838254091,-3805.61,0.00021251,2]
[387761399,1758838254102,-480.0,0.00021251,2]
[387761401,1758838254111,-819.71,0.00021251,2]
[387761403,1758838254120,-200.0,0.00021252,2]
[387761405,1758838254129,-480.0,0.00021252,2]
[387761407,1758838254139,-480.0,0.00021252,2]
[387761409,1758838254149,-462.91848984,0.00021252,2]
[387761411,1758838254158,-480.0,0.00021252,2]
[387761412,1758838254167,-480.0,0.00021252,2]
[387761413,1758838254177,-480.0,0.00021252,2]
[387761414,1758838254186,-480.0,0.00021252,2]
[387761415,1758838254195,-480.0,0.00021252,2]
[387761416,1758838254205,-537.83,0.00021252,2]
[387761417,1758838254214,-480.0,0.00021252,2]
[387761418,1758838254224,-1097.49,0.00021252,2]
[387761419,1758838254234,-574.87,0.00021252,2]
[387761420,1758838254243,-480.0,0.00021252,2]
[387761421,1758838254253,-480.0,0.00021252,2]
[387761422,1758838254263,-480.0,0.00021252,2]
[387761423,1758838254273,-480.0,0.00021252,2]
[387761424,1758838254282,-746.0,0.00021252,2]
[387761425,1758838254292,-1188.66,0.00021252,2]
[387761426,1758838254302,-534.70268371,0.00021252,2]
[387761427,1758838254314,-480.0,0.00021252,2]
[387761428,1758838254334,-1267.22,0.00021252,2]
[387761429,1758838254349,-631.04,0.00021252,2]
[387761430,1758838254369,-480.0,0.00021252,2]
[387761431,1758838254388,-521.69,0.00021252,2]
[387761432,1758838254405,-841.54,0.00021252,2]
[387761433,1758838254422,-2281.18,0.00021252,2]
[387761434,1758838254440,-480.0,0.00021252,2]
[387761437,1758838254454,-480.0,0.00021252,2]
[387761440,1758838254471,-480.0,0.00021252,2]
[387761443,1758838254489,-1278.54,0.00021252,2]
[387761446,1758838254508,-660.24,0.00021252,2]
[387761448,1758838254523,-566.86,0.00021252,2]
[387761451,1758838254537,-482.45,0.00021252,2]
[387761454,1758838254556,-811.64,0.00021252,2]
[387761456,1758838254569,-1124.2,0.00021252,2]
[387761459,1758838254589,-1879.63,0.00021252,2]
[387761461,1758838254602,-480.0,0.00021252,2]
[387761463,1758838254617,-480.0,0.00021252,2]
[387761466,1758838254631,-480.0,0.00021252,2]
[387761468,1758838254645,-480.0,0.00021252,2]
[387761471,1758838254659,-480.0,0.00021252,2]
[387761473,1758838254672,-1002.7,0.00021253,2]
[387761476,1758838254686,-480.0,0.00021259,2]
[387761478,1758838254700,-3674.97,0.00021259,2]
[387761481,1758838254714,-722.93,0.00021259,2]
[387761483,1758838254727,-1532.43,0.00021259,2]
[387761486,1758838254742,-480.0,0.0002126,2]
[387761488,1758838254756,-912.02,0.0002126,2]
[387761490,1758838254770,-840.21,0.0002126,2]
[387761493,1758838254784,-1277.34,0.00021261,2]
[387761495,1758838254797,-175.24809874,0.00021261,2]
[387761498,1758838254812,-480.0,0.00021261,2]
[387761500,1758838254826,-1500.0,0.00021268,2]
[387761503,1758838254839,-155.0,0.00021285,2]
[387761505,1758838254853,-500.0,0.00021376,2]
[387761508,1758838254867,-208.54,0.00021399,2]
[387761510,1758838254882,-518.13,0.00021525,2]
[387761513,1758838254896,-995.98,0.00021525,2]
[387761515,1758838254911,-2557.87,0.00021525,2]
[387761518,1758838254926,-3805.61,0.00021525,2]
[387761520,1758838254936,-480.0,0.00021525,2]
[387761522,1758838254946,-819.71,0.00021525,2]
[387761524,1758838254956,-480.0,0.00021526,2]
[387761526,1758838254966,-480.0,0.00021526,2]
[387761528,1758838254976,-480.0,0.00021526,2]
[387761543,1758838255110,-480.0,0.00021526,2]
[387761545,1758838255121,-480.0,0.00021526,2]
[387761547,1758838255130,-406.40120784,0.00021526,2]
[387761549,1758838255140,-480.0,0.00021526,2]
[387761551,1758838255149,-537.83,0.00021526,2]
[387761553,1758838255158,-480.0,0.00021526,2]
[387761555,1758838255168,-1097.49,0.00021526,2]
[387761557,1758838255178,-574.87,0.00021526,2]
[387761559,1758838255189,-480.0,0.00021526,2]
[387761561,1758838255199,-480.0,0.00021526,2]
[387761563,1758838255208,-480.0,0.00021526,2]
[387761565,1758838255217,-480.0,0.00021526,2]
[387761567,1758838255227,-746.0,0.00021526,2]
[387761569,1758838255237,-1188.66,0.00021526,2]
[387761571,1758838255246,-480.0,0.00021526,2]
[387761573,1758838255256,-1267.22,0.00021526,2]
[387761575,1758838255265,-631.04,0.00021526,2]
[387761577,1758838255275,-480.0,0.00021526,2]
[387761579,1758838255284,-521.69,0.00021526,2]
[387761581,1758838255294,-841.54,0.00021526,2]
[387761583,1758838255304,-2281.18,0.00021526,2]
[387761585,1758838255314,-480.0,0.00021526,2]
[387761587,1758838255323,-480.0,0.00021526,2]
[387761589,1758838255332,-480.0,0.00021526,2]
[387761591,1758838255342,-1278.54,0.00021526,2]
[387761594,1758838255352,-660.24,0.00021526,2]
[387761596,1758838255363,-566.86,0.00021526,2]
[387761598,1758838255372,-482.45,0.00021526,2]
[387761600,1758838255382,-811.64,0.00021526,2]
[387761602,1758838255391,-1124.2,0.00021526,2]
[387761604,1758838255400,-1879.63,0.00021526,2]
[387761605,1758838255410,-480.0,0.00021526,2]
[387761607,1758838255419,-480.0,0.00021526,2]
[387761609,1758838255429,-409.50616565,0.00021526,2]
[387761611,1758838255439,-480.0,0.00021526,2]
[387761613,1758838255448,-480.0,0.00021526,2]
[387761615,1758838255458,-1002.7,0.00021527,2]
[387761618,1758838255467,-480.0,0.00021533,2]
[387761620,1758838255476,-3674.97,0.00021533,2]
[387761621,1758838255486,-722.93,0.00021533,2]
[387761623,1758838255496,-1532.43,0.00021533,2]
[387761625,1758838255506,-480.0,0.00021534,2]
[387761628,1758838255515,-912.02,0.00021534,2]
[387761629,1758838255525,-840.21,0.00021534,2]
[387761631,1758838255535,-1277.34,0.00021535,2]
[387761633,1758838255544,-450.18248696,0.00021535,2]
[387761635,1758838255553,-200.0,0.00021535,2]
[387761637,1758838255563,-569.49839756,0.00021566,2]
[387761639,1758838255574,-1000.0,0.00021616,2]
[387761641,1758838255587,-2023.00889075,0.00021616,2]
[387761643,1758838255596,-1500.0,0.00021616,2]
[387761645,1758838255606,-500.0,0.0002165,2]
[387761647,1758838255616,-500.0,0.00021664,2]
[387761649,1758838255626,-406.84464171,0.00021704,2]
[387761651,1758838255636,-360.0,0.00021742,2]
[387761653,1758838255646,-160.0,0.00021776,2]
[387761655,1758838255655,-160.0,0.00021776,2]
[387761657,1758838255666,-417.15472785,0.00021776,2]
[387761659,1758838255676,-233.66602051,0.00021776,2]
[387761661,1758838255685,-160.0,0.00021776,2]
[387761663,1758838255694,-160.0,0.00021776,2]
[387761665,1758838255704,-160.0,0.00021776,2]
[387761667,1758838255714,-160.0,0.00021776,2]
[387761669,1758838255724,-518.13,0.00021799,2]
[387761671,1758838255734,-995.98,0.00021799,2]
[387761674,1758838255744,-2557.87,0.00021799,2]
[387761676,1758838255753,-3805.61,0.00021799,2]
[387761677,1758838255763,-480.0,0.00021799,2]
[387761679,1758838255772,-819.71,0.00021799,2]
[387761681,1758838255782,-480.0,0.000218,2]
[387761683,1758838255791,-480.0,0.000218,2]
[387761685,1758838255801,-480.0,0.000218,2]
[387761688,1758838255811,-480.0,0.000218,2]
[387761689,1758838255820,-480.0,0.000218,2]
[387761692,1758838255830,-480.0,0.000218,2]
[387761694,1758838255839,-537.83,0.000218,2]
[387761696,1758838255849,-480.0,0.000218,2]
[387761698,1758838255859,-1097.49,0.000218,2]
[387761700,1758838255869,-574.87,0.000218,2]
[387761702,1758838255879,-480.0,0.000218,2]
[387761704,1758838255888,-300.46224611,0.000218,2]
[387761706,1758838255898,-492.96610051,0.000218,2]
[387761708,1758838255908,-480.0,0.000218,2]
[387761710,1758838255917,-746.0,0.000218,2]
[387761712,1758838255927,-1188.66,0.000218,2]
[387761714,1758838255936,-480.0,0.000218,2]
[387761716,1758838255945,-1267.22,0.000218,2]
[387761718,1758838255954,-631.04,0.000218,2]
[387761720,1758838255964,-480.0,0.000218,2]
[387761722,1758838255973,-521.69,0.000218,2]
[387761724,1758838255982,-841.54,0.000218,2]
[387761726,1758838255992,-2281.18,0.000218,2]
[387761728,1758838256001,-480.0,0.000218,2]
[387761730,1758838256011,-480.0,0.000218,2]
[387761732,1758838256021,-490.87260595,0.000218,2]
[387761734,1758838256031,-1278.54,0.000218,2]
[387761736,1758838256040,-660.24,0.000218,2]
[387761738,1758838256050,-566.86,0.000218,2]
[387761740,1758838256059,-482.45,0.000218,2]
[387761742,1758838256069,-811.64,0.000218,2]
[387761744,1758838256079,-1124.2,0.000218,2]
[387761746,1758838256088,-1879.63,0.000218,2]
[387761748,1758838256098,-480.0,0.000218,2]
[387761750,1758838256110,-480.0,0.000218,2]
[387761752,1758838256119,-480.0,0.000218,2]
[387761754,1758838256129,-480.0,0.000218,2]
[387761756,1758838256140,-1002.7,0.00021801,2]
[387761758,1758838256151,-480.0,0.00021807,2]
[387761760,1758838256160,-3674.97,0.00021807,2]
[387761762,1758838256170,-722.93,0.00021807,2]
[387761764,1758838256179,-1532.43,0.00021807,2]
[387761766,1758838256189,-480.0,0.00021808,2]
[387761768,1758838256198,-912.02,0.00021808,2]
[387761770,1758838256208,-840.21,0.00021808,2]
[387761772,1758838256217,-1277.34,0.00021809,2]
[387761774,1758838256227,-1508.35320698,0.00021816,2]
[387761776,1758838256237,-785.6512904,0.00021833,2]
[387761778,1758838256246,-500.0,0.00021848,2]
[387761780,1758838256255,-500.0,0.00021848,2]
[387761782,1758838256265,-480.0,0.00021917,2]
[387761784,1758838256275,-480.0,0.00021917,2]
[387761786,1758838256284,-480.0,0.00021917,2]
[387761788,1758838256293,-480.0,0.00021917,2]
[387761790,1758838256303,-480.0,0.00021917,2]
[387761792,1758838256312,-600.0,0.00021917,2]
[387761795,1758838256322,-246.21165729,0.00021917,2]
[387761797,1758838256332,-151.0,0.00021918,2]
[387761799,1758838256342,-151.0,0.00021918,2]
[387761801,1758838256351,-151.0,0.00021918,2]
[387761803,1758838256363,-151.0,0.00021918,2]
[387761805,1758838256372,-151.0,0.00021918,2]
[387761807,1758838256381,-151.0,0.00021918,2]
[387761809,1758838256390,-155.046698,0.00021918,2]
[387761811,1758838256399,-151.0,0.00021918,2]
[387761813,1758838256409,-151.0,0.00021918,2]
[387761815,1758838256418,-151.0,0.00021918,2]
[387761817,1758838256428,-304.29768,0.00021918,2]
[387761819,1758838256437,-304.29768,0.00021918,2]
[387761821,1758838256446,-304.29768,0.00021918,2]
[387761823,1758838256456,-304.29768,0.00021918,2]
[387761824,1758838256465,-304.29768,0.00021918,2]
[387761827,1758838256475,-304.29768,0.00021918,2]
[387761829,1758838256484,-304.29768,0.00021918,2]
[387761831,1758838256493,-304.29768,0.00021918,2]
[387761832,1758838256503,-304.29768,0.00021918,2]
[387761834,1758838256512,-304.29768,0.00021918,2]
[387761836,1758838256522,-304.29768,0.00021918,2]
[387761838,1758838256531,-304.29768,0.00021918,2]
[387761841,1758838256541,-304.29768,0.00021918,2]
[387761843,1758838256551,-304.29768,0.00021918,2]
[387761845,1758838256561,-304.29768,0.00021918,2]
[387761847,1758838256570,-304.29768,0.00021918,2]
[387761849,1758838256581,-304.29768,0.00021918,2]
[387761851,1758838256594,-304.29768,0.00021918,2]
[387761852,1758838256603,-304.29768,0.00021918,2]
[387761855,1758838256613,-304.297686,0.00021918,2]
[387761856,1758838256623,-151.0,0.00021918,2]
[387761858,1758838256632,-500.0,0.00021924,2]
[387761860,1758838256641,-1664.38,0.00022,2]
[387761862,1758838256650,-1000.0,0.00022,2]
[387761864,1758838256662,-2949.90918836,0.00022044,2]
[387761867,1758838256672,-174.65,0.00022057,2]
[387761869,1758838256682,-518.13,0.00022073,2]
[387761878,1758838256763,-995.98,0.00022073,2]
[387761880,1758838256775,-2557.87,0.00022073,2]
[387761882,1758838256785,-3805.61,0.00022073,2]
[387761883,1758838256794,-480.0,0.00022073,2]
[387761884,1758838256804,-819.71,0.00022073,2]
[387761885,1758838256813,-480.0,0.00022074,2]
[387761886,1758838256823,-480.0,0.00022074,2]
[387761887,1758838256833,-480.0,0.00022074,2]
[387761888,1758838256843,-480.0,0.00022074,2]
[387761889,1758838256852,-480.0,0.00022074,2]
[387761890,1758838256863,-480.0,0.00022074,2]
[387761891,1758838256872,-537.83,0.00022074,2]
[387761892,1758838256882,-480.0,0.00022074,2]
[387761893,1758838256892,-1097.49,0.00022074,2]
[387761894,1758838256901,-574.87,0.00022074,2]
[387761895,1758838256911,-480.0,0.00022074,2]
[387761896,1758838256922,-480.0,0.00022074,2]
[387761897,1758838256932,-746.0,0.00022074,2]
[387761898,1758838256942,-1188.66,0.00022074,2]
[387761899,1758838256951,-480.0,0.00022074,2]
[387761900,1758838256961,-1267.22,0.00022074,2]
[387761901,1758838256971,-631.04,0.00022074,2]
[387761903,1758838256980,-344.75,0.00022074,2]
[387761905,1758838256990,-521.69,0.00022074,2]
[387761907,1758838257000,-841.54,0.00022074,2]
[387761908,1758838257009,-2281.18,0.00022074,2]
[387761910,1758838257018,-480.0,0.00022074,2]
[387761912,1758838257027,-480.0,0.00022074,2]
[387761914,1758838257037,-1278.54,0.00022074,2]
[387761916,1758838257046,-660.24,0.00022074,2]
[387761918,1758838257055,-566.86,0.00022074,2]
[387761920,1758838257065,-482.45,0.00022074,2]
[387761922,1758838257074,-811.64,0.00022074,2]
[387761924,1758838257084,-1124.2,0.00022074,2]
[387761926,1758838257094,-1879.63,0.00022074,2]
[387761928,1758838257103,-480.0,0.00022074,2]
[387761930,1758838257113,-480.0,0.00022074,2]
[387761932,1758838257123,-480.0,0.00022074,2]
[387761934,1758838257133,-480.0,0.00022074,2]
[387761936,1758838257142,-1002.7,0.00022075,2]
[387761938,1758838257151,-480.0,0.00022081,2]
[387761940,1758838257161,-3674.97,0.00022081,2]
[387761942,1758838257170,-722.93,0.00022081,2]
[387761944,1758838257180,-1532.43,0.00022081,2]
[387761946,1758838257189,-480.0,0.00022082,2]
[387761948,1758838257199,-912.02,0.00022082,2]
[387761949,1758838257209,-840.21,0.00022082,2]
[387761950,1758838257218,-1277.34,0.00022083,2]
[387761951,1758838257227,-156.93,0.00022086,2]
[387761952,1758838257237,-260.65,0.000221,2]
[387761953,1758838257247,-500.0,0.00022125,2]
[387761954,1758838257256,-501.00712413,0.00022125,2]
[387761955,1758838257266,-500.0,0.00022125,2]
[387761956,1758838257275,-506.99971912,0.00022125,2]
[387761957,1758838257285,-500.0,0.00022125,2]
[387761958,1758838257295,-203.48031014,0.00022125,2]
[387761959,1758838257304,-501.58013168,0.00022125,2]
[387761960,1758838257313,-500.0,0.00022125,2]
[387761961,1758838257322,-500.0,0.00022125,2]
[387761962,1758838257332,-500.0,0.00022125,2]
[387761963,1758838257342,-500.0,0.00022125,2]
[387761964,1758838257353,-500.03115209,0.00022125,2]
[387761965,1758838257363,-500.0,0.00022125,2]
[387761966,1758838257372,-500.0,0.00022125,2]
[387761967,1758838257382,-163.59297665,0.00022125,2]
[387761968,1758838257392,-500.0,0.00022125,2]
[387761969,1758838257401,-500.0,0.00022125,2]
[387761970,1758838257411,-500.0,0.00022125,2]
[387761971,1758838257420,-501.49750944,0.00022125,2]
[387761972,1758838257430,-629.49467178,0.00022125,2]
[387761973,1758838257440,-500.0,0.00022125,2]
[387761974,1758838257450,-151.0,0.00022192,2]
[387761975,1758838257459,-500.0,0.00022198,2]
[387761976,1758838257469,-1000.0,0.00022212,2]
[387761977,1758838257478,-2988.91285334,0.00022215,2]
[387761978,1758838257488,-569.49839756,0.00022249,2]
[387761979,1758838257497,-460.0,0.0002229,2]
[387761980,1758838257508,-518.13,0.00022347,2]
[387761981,1758838257518,-995.98,0.00022347,2]
[387761982,1758838257528,-2557.87,0.00022347,2]
[387761983,1758838257537,-3805.61,0.00022347,2]